Cogmind - Beta 14 @@@ ROGUE MODE // 2025.03.28 @ 12:35:02 Player: Voldy Result: Destroyed by D-53 Grenadier with Mini Grenade Launcher Performance ------------- Evolutions (0) 0 Regions Visited (2) 400 Robots Destroyed (16) 80 Value Destroyed (423) 423 Prototype IDs (0) 0 Alien Tech Used (0) 0 Bonus (0) 0 TOTAL SCORE: 903 Bonus ------- None Cogmind --------- Core Integrity 0/250 Matter 300/300 Energy 100/100 System Corruption 4% Temperature Cool (15) Movement Core (50) Location -10/Mines Parts ------- > --- POWER (1) -------- (None) > --- PROPULSION (2) --- (None) > --- UTILITY (2) ------ Signal Interpreter > --- WEAPON (2) ------- (None) > --- INVENTORY (5) ---- Ion Engine Small Laser Small Laser Beam Cannon Beam Cannon Peak State ------------ > --- POWER ------------ Ion Engine > --- PROPULSION ------- Wheel Wheel > --- UTILITY ---------- Signal Interpreter Propulsion Shielding > --- WEAPON ----------- EM Pulse Gun Assault Rifle > --- INVENTORY -------- Small Laser [Rating: 7] Favorites ----------- Power Ion Engine Engine Ion Engine Propulsion Wheel Leg Aluminum Leg Wheel Wheel Utility Signal Interpreter Processor Signal Interpreter Protection Propulsion Shielding Weapon Assault Rifle Energy Gun EM Pulse Gun Energy Cannon Beam Cannon Ballistic Gun Assault Rifle Special Weapon Mining Laser Build | -11 -10 -10 ------- Run | Yrd Mat Min Slots Evolved . | . . . Power . | . . . Propulsion . | . . . Utility . | . . . Weapon . | . . . Parts Attached 15 | 5 8 2 Power 2 | 1 1 . Engine 2 | 1 1 . Core . | . . . Reactor . | . . . Propulsion 5 | 2 3 . Treads . | . . . Leg 2 | . 2 . Wheel 3 | 2 1 . Hover . | . . . Flight . | . . . Utility 2 | . 2 . Device . | . . . Storage . | . . . Processor 1 | . 1 . Hackware . | . . . Protection 1 | . 1 . Artifact . | . . . Weapon 6 | 2 2 2 Energy Gun 3 | 2 1 . Energy Cannon 1 | . . 1 Ballistic Gun 1 | . 1 . Ballistic Cannon . | . . . Launcher . | . . . Special Weapon 1 | . . 1 Impact Weapon . | . . . Slashing Weapon . | . . . Piercing Weapon . | . . . Special Melee Weapon . | . . . Unidentified Prototypes . | . . . Parts Lost 9 | . 4 5 Power 2 | . 1 1 Propulsion 3 | . 2 1 Utility 1 | . . 1 Weapon 3 | . 1 2 Highest Loss Streak 4 | . 4 3 To Critical Strikes . | . . . Average Slot Usage (%) 87 | . 90 78 Engine 13 | . 13 14 Leg 1 | . 1 . Wheel 20 | . 22 14 Processor 13 | . 13 14 Protection 9 | . 9 9 Energy Gun 15 | . 15 13 Ballistic Gun 11 | . 12 10 Peak Build Rating 7 | 5 7 6 Average Rating 5 | 3 6 5 On Entrance 3 | . 5 6 Naked Turns . | . . . Heaviest Build 10 | 8 10 9 Greatest Support 20 | 20 20 10 Greatest Overweight (x) 1 | . 1 . Average Overweight (x) . | . . . Largest Inventory Capacity 5 | 5 5 5 Average Capacity 5 | 5 5 5 Most Carried 5 | 4 5 5 Average Carried 2 | . 1 3 Final Capacity 5 | 5 5 5 Final Carried 5 | . 4 5 Class Distribution -------------------- 100% | Mutant Dominant Class ---------------- Mutant | -10/Materials Mutant | -10/Mines Resources | -11 -10 -10 ----------- Run | Yrd Mat Min Matter Collected 457 | 230 182 45 Remotely . | . . . Salvage Created 558 | . 511 47 Parts 30 | . 30 . Haulers Intercepted . | . . . Recyclers Shooed 1 | . 1 . Parts Field Recycled . | . . . Retrieved Matter . | . . . Parts Self-Destructed . | . . . Prevented . | . . . Kills | -11 -10 -10 ------- Run | Yrd Mat Min Combat Hostiles Destroyed 16 | . 13 3 Guns 16 | . 13 3 Classes Destroyed 5 | . 4 1 Worker 1 | . 1 . Watcher 2 | . 2 . Swarmer 3 | . 3 . Grunt 10 | . 10 . Assembled 3 | . . 3 Best Kill Streak 5 | . 5 3 Combat Bots Only 4 | . 4 3 Max Kills in Single Turn 2 | . 2 1 Gunslinging 1 | . 1 . Exploded . | . . . Melee . | . . . Uniques/NPCs Destroyed . | . . . Combat | -11 -10 -10 -------- Run | Yrd Mat Min Hostile Shots Fired 81 | . 65 16 Missed 22 | . 19 3 Damage Taken 849 | . 494 355 Core 254 | . 99 155 Absorbed by Shields . | . . . Redirected to Shielding 30 | . 30 . Core Remaining (%) 100 | 100 . . Volleys Fired 47 | . 34 13 Largest 2 | . 2 2 Hottest 100 | . 60 100 Shots Fired 87 | . 68 19 Gun 86 | . 68 18 Cannon . | . . . Launcher . | . . . Special 1 | . . 1 Kinetic 40 | . 34 6 Thermal 23 | . 10 13 Explosive . | . . . Electromagnetic 24 | . 24 . Robot Hit Streak 11 | . 8 11 Robot Miss Streak 3 | . 3 3 Penetration Max . | . . . Secondary Targets 5 | . 4 1 Max Gunslinging Chain 1 | . 1 1 Shots Hit Robots 54 | . 41 13 Core Hits 29 | . 23 6 Critical Kills . | . . . Critical Parts Destroyed . | . . . Critical Strikes 1 | . 1 . Corrupt 1 | . 1 . Melee Attacks . | . . . Impact . | . . . Slashing . | . . . Piercing . | . . . Sneak Attacks . | . . . Combat Hostiles . | . . . Follow-up Attacks . | . . . Damage Inflicted 815 | . 657 158 Guns 677 | . 519 158 Cannons . | . . . Explosions 128 | . 128 . Melee . | . . . Ramming 10 | . 10 . Kinetic 290 | . 213 77 Thermal 313 | . 232 81 Explosive . | . . . Electromagnetic 202 | . 202 . Impact . | . . . Slashing . | . . . Piercing . | . . . Highest Corruption 4 | . 2 4 Average Corruption 2 | . 1 2 Corruption Purged . | . . . Corruption Blocked . | . . . Effects 7 | . 3 4 Message Errors 3 | . 2 1 Matter Fused 2 | . . 2 Heat Flow Errors 2 | . 1 1 Overload Shots . | . . . Overflow Damage . | . . . Projectiles . | . . . Explosions . | . . . Melee . | . . . Knockbacks . | . . . Impact . | . . . Kinetic . | . . . Secondary . | . . . Self-Inflicted Damage 42 | . 42 . Shots 1 | . 1 . Rammed 3 | . 3 . Targets Rammed 3 | . 3 . Kicked . | . . . Crushed . | . . . Highest Temperature 210 | . 137 210 Average Temperature 35 | . 28 58 Received Heat Transfer 204 | . 204 . Siege Activations . | . . . Robots Corrupted . | . . . Combat Hostiles . | . . . Parts Fried . | . . . Impact Corruptions . | . . . Robots Melted . | . . . Combat Hostiles . | . . . Parts Melted . | . . . Heat Transferred 550 | . 375 175 Parts Sabotaged . | . . . Parts Stolen . | . . . Parts Stripped . | . . . Power Chain Reactions 2 | . 2 . Alert | -11 -10 -10 ------- Run | Yrd Mat Min Peak Influence 356 | . 356 94 Initial 79 | . . 79 Average 157 | . 195 77 Maximum Alert Level 1 | . 1 . Low Security (%) 51 | 100 33 100 Level 1 48 | . 66 . Level 2 . | . . . Level 3 . | . . . Level 4 . | . . . Level 5 . | . . . High Security . | . . . Max Security . | . . . Squads Dispatched 7 | . 7 . Investigation 6 | . 6 . Extermination . | . . . Reinforcement 1 | . 1 . Assault . | . . . Garrison . | . . . Intercept . | . . . Searches Triggered . | . . . Construction Impeded . | . . . Haulers Reinforced . | . . . Active Scanning Responses . | . . . Cargo Convoy Interrupts . | . . . Stealth | -11 -10 -10 --------- Run | Yrd Mat Min Distress Signals 2 | . 2 . Communications Jammed . | . . . Distress Signals . | . . . Times Spotted 22 | . 16 6 Peak Tracking Total 7 | . 3 7 Tactical Retreats 2 | . 1 1 Traps | -11 -10 -10 ------- Run | Yrd Mat Min Traps Triggered 2 | . 2 . Indirectly . | . . . Trap Hack Attempts . | . . . Triggered . | . . . Disarmed . | . . . Reprogrammed . | . . . Reused . | . . . Traps Extracted . | . . . Installed . | . . . Triggered . | . . . Machines | -11 -10 -10 ---------- Run | Yrd Mat Min Machines Disabled 2 | . 2 . Max in Single Turn 1 | . 1 . Machines Repaired . | . . . Machines Dismantled . | . . . Machines Sabotaged . | . . . Overloaded Fab Kills . | . . . Hacking | -11 -10 -10 --------- Run | Yrd Mat Min Machines Accessed 10 | . 9 1 Terminals 7 | . 6 1 Fabricators . | . . . Repair Stations 1 | . 1 . Recycling Units 2 | . 2 . Scanalyzers . | . . . Garrison Access . | . . . Total Hacks 37 | . 31 6 Successful 15 | . 13 2 Failed 22 | . 18 4 Catastrophic 7 | . 5 2 Database Lockouts . | . . . Manual 14 | . 13 1 Terminals 30 | . 24 6 Fabricators . | . . . Repair Stations 1 | . 1 . Recycling Units 6 | . 6 . Scanalyzers . | . . . Garrison Access . | . . . Terminal Hacks 10 | . 8 2 Record 6 | . 4 2 Dispatch Records 1 | . 1 . Reinforcement Status 1 | . 1 . Recall Investigation 1 | . 1 . Zone Layout 1 | . 1 . Fabricator Hacks . | . . . Repair Station Hacks 1 | . 1 . Scan Component 1 | . 1 . Recycling Unit Hacks 4 | . 4 . Process 1 | . 1 . Report Inventory 2 | . 2 . Retrieve Matter 1 | . 1 . Scanalyzer . | . . . Garrison Access Hacks . | . . . Unauthorized Hacks . | . . . Terminals . | . . . Fabricators . | . . . Repair Stations . | . . . Recycling Units . | . . . Scanalyzers . | . . . Garrison Access . | . . . Data Cores Recovered . | . . . Used . | . . . Hacking Detections 9 | . 8 1 Full Trace Events 8 | . 7 1 Feedback Events 2 | . 2 . Corruption 2 | . 2 . Feedback Blocked . | . . . Robot Schematics Acquired . | . . . Robots Built . | . . . Authchips . | . . . Time . | . . . Total Robot Build Rating . | . . . Part Schematics Acquired . | . . . Parts Built . | . . . Authchips . | . . . Time . | . . . Total Part Build Rating . | . . . Parts Repaired . | . . . Time . | . . . Parts Recycled . | . . . Recycled Matter 93 | . 93 . Retrieved Matter 102 | . 102 . Retrieved Components . | . . . Parts Scanalyzed . | . . . Part Schematics Acquired . | . . . Parts Damaged . | . . . Bothacking | -11 -10 -10 ------------ Run | Yrd Mat Min Used RIF Installer . | . . . Robots Hacked . | . . . Non-combat . | . . . Combat . | . . . Robot Hacks Applied . | . . . Relay Couplers Released . | . . . Fabnet Peak Effective % . | . . . Robots Rewired . | . . . Allies Hacked . | . . . Hacks Repelled . | . . . Allies | -11 -10 -10 -------- Run | Yrd Mat Min Total Allies 1 | . . 1 Largest Group 1 | . . 1 Highest-Rated Group 31 | . . 31 Highest-Rated Ally 31 | . . 31 Total Orders . | . . . Ally Attacks 4 | . . 4 Total Damage 22 | . . 22 Kills . | . . . Allies Corrupted . | . . . Allies Melted . | . . . Intel | -11 -10 -10 ------- Run | Yrd Mat Min Robot Analysis Total . | . . . Derelict Logs Recovered 1 | . . 1 Drone Launches . | . . . Drone Recoveries . | . . . Exploration | -11 -10 -10 ------------- Run | Yrd Mat Min Turns Passed 713 | 47 516 150 Spaces Moved 670 | 53 476 141 Core 28 | 18 10 . Treads . | . . . Legs 13 | . 13 . Wheels 629 | 35 453 141 Hover . | . . . Flight . | . . . Fastest Speed 50 | 50 80 80 Average Speed 80 | 69 81 80 Slowest Speed 120 | 80 120 80 Overloaded Moves . | . . . Propulsion Burnouts . | . . . Robots Hopped . | . . . Cave-ins Triggered . | . . . Exploration Rate (%) 36 | 3 69 38 Regions Visited 2 Branch Regions 1 Pre-discovered Areas 1 | . . 1 Known Exits Taken 1 | . 1 . Unknown Exits Taken 1 | 1 . . Scrap Searched 1 | . . 1 Spaces Dug . | . . . Terrain Destroyed 8 | . 8 . Melee . | . . . Projectile . | . . . AOE 8 | . 8 . Terrain Rammed . | . . . Walls Destroyed . | . . . Machines Disabled . | . . . Actions | -11 -10 -10 --------- Run | Yrd Mat Min Total 755 | 62 535 158 Wait 2 | . 2 . Move 668 | 52 475 141 Hop . | . . . Pick Up 17 | 5 11 1 Fast Attach . | . . . Attach 12 | 5 6 1 Detach 1 | . . 1 Swap 3 | . 2 1 Drop 2 | . 2 . Fire 47 | . 34 13 Melee . | . . . Ram 3 | . 3 . Kick . | . . . Crush . | . . . Escape Stasis . | . . . Rewire . | . . . Trap . | . . . Miscellaneous . | . . . Route ------- -11/Scrapyard -10/Materials (discovered 3 exits: *Mat x2 / *Min) -10/Mines History --------- Turn | Location | Event 11 | -11/Scrapyard | Discovered new exit (range 15) 48 | -11/Scrapyard | Entered Materials 197 | -10/Materials | Discovered new exit (range 15) 279 | -10/Materials | Discovered new exit (range 14) 303 | -10/Materials | Build established: Mutant 454 | -10/Materials | Lost 4 parts (1p2n1w) 462 | -10/Materials | Discovered new exit (range 16) 517 | -10/Materials | Identified exit to Materials 563 | -10/Materials | Identified exit to Mines 564 | -10/Materials | Entered Mines 642 | -10/Mines | Assembled infested the area 650 | -10/Mines | Learned location of Zion (-7) 673 | -10/Mines | Received a Mining Laser from a helpful Derelict 674 | -10/Mines | Core integrity fell below 50% 713 | -10/Mines | Core integrity fell below 20% 714 | -10/Mines | Destroyed by D-53 Grenadier with Mini Grenade Launcher Last Messages --------------- as-21526 destroyed. MH-NA1(g): "You're apparently new around these parts, I'll cover you." Assault Rifle destroyed. Move into an ally to swap places with them. as-69664 destroyed. Acquired 4 matter. MH-NA1(g): "Mining lasers are a lot more useful than you might think..." U-05 Engineer destroyed. Knocked back. MH-NA1(g) knocked back. Acquired 10 matter. The unstable cave ceiling collapses. Acquired Mining Laser. Acquired 10 matter. Wheel destroyed. Mining Laser destroyed. The unstable cave ceiling collapses. Ion Engine destroyed. Map ----- +----------------------------------------------------+ | ????? #????????# #?????????????????? | | ?????? ????????# #?????????????????? | | ?????## ????????# #?????????????????? | | ??????## ????????# #?????????????????? | | ???????## ???????# #?????????????????? | | ?????????## ???????# #######???????????? | | ???????????##???????# #???????????? | | ????????????????????# ##### #???????????? | | ????????????????????# #?????????????????? | | ????????????????????# #?????????????????? | | ????????????????????# #?????????????????? | | ????????????????????# #?????????????????? | | ????????????????????# #?????????????????? | | ????????????????##### #?????????????????? | | ???????????????## #?????????????????? | | ???????????????# #?????????????????? | | ???????????????# #?????????????????? | | ???????????????# #?????????????????? | | ???????????????## #?????????????????? | | ????????????????### ##?????????????????? | | ??????????????????## ######??????????????? | | ??????????????????# ## # ####???????????? | | ??????????????????# ##??????????? | | ???? |##### #??????????? | | ???????????# !%= % dd #??????????? | | ???????????# ##### @ #??????????? | | ??????????????????## #??????????? | | ???????????????????### #??????????? | | ?????????????????????# ##??????????? | | ?????????????????????## #???????????? | | ?????????????????????## #???????????? | | ????????????????????## ## #???????????? | | ???????????????????## ##?##???????????? | | ???????????????????# #???????????????? | | ??????????????????# #???????????????? | | ??????????????????# #???????????????? | | ??????????????????# #???????????????? | | ??????????????????## ##???????????????? | | ???????????????????######????????????????? | | ?????????????????????????????????????????? | | ?????????????????????????????????????????? | | | | | | | | | | | | | | | | | | | +----------------------------------------------------+ Best States ------------- Heat Dissipation 25 Energy Generation 10 Energy Capacity 250 Matter Stores 300 Matter Capacity 300 Sight Range 16 Terrain Scan Density 10 Propulsion Shielding 33 Evasion (%) 55 Item Schematics ----------------- None Robot Schematics ------------------ None Fabricated ------------ Nothing Alien Tech Used ----------------- None Achievements -------------- Novice Programmer Challenges ------------ None Game ------ Seed SigixBoltAmplifier Manual? 0 Play Time 00:18:27 Cumulative 1.7 hours Start 2025.03.27 @ 14:58:16 End 2025.03.28 @ 12:35:02 Sessions 3 Manual Loads 0 Difficulty Rogue Special Mode None Game No. 3 Rogue 3 Adventurer 0 Explorer 0 Win Type - Total 0 Types 0/0/0/0/0/0/0/0/0 Lore% 1 Gallery% 4 Achievement% 5 Wizard Run 0 Options --------- Layout 1 ASCII 0 Keyboard 0 Movement Mouse Keybinds 0 Fullscreen 2 Font 24/Cog Map View 50x35 Zoom Use 0% Tactical HUD 0 Map Filters NONE Filters NONE Steam 1 RUN: 546d696a-65fd-4bb9-936f-644d28581e3d